Workbook

Sheet Доходы
A1: ОТЧЕТ ОБ ИСПОЛНЕНИИ БЮДЖЕТА
A2: ГЛАВНОГО РАСПОРЯДИТЕЛЯ, РАСПОРЯДИТЕЛЯ, ПОЛУЧАТЕЛЯ БЮДЖЕТНЫХ СРЕДСТВ, ГЛАВНОГО АДМИНИСТРАТОРА, АДМИНИСТРАТОРА ИСТОЧНИКОВ ФИНАНСИРОВАНИЯ ДЕФИЦИТА БЮДЖЕТА, ГЛАВНОГО АДМИНИСТРАТОРА, АДМИНИСТРАТОРА ДОХОДОВ БЮДЖЕТА
H3: КОДЫ | J3: Форма по ОКУД
B4: на 01 января 2015 г. | H4: 0503127 | J4: Дата
H5: 01.01.15 г.
A6: Главный распорядитель, распорядитель, получатель бюджетных средств, главный администратор, администратор доходов бюджета, главный администратор, администратор источников финансирования дефицита бюджета | B6: НЕДОКУРСКИЙ СЕЛЬСОВЕТ | H6: 04095486 | J6: по ОКПО
A7: Наименование бюджета | B7: Администрация Недокурского сельсовета Кежемского района Красноярского края | H7: 807 | J7: Глава по БК
A8: Периодичность: годовая | H8: 042807000 | J8: по ОКАТО
A9: Единица измерения: руб. | C9: 1. Доходы бюджета | H9: 383 | J9: по ОКЕИ
A12: Наименование показателя | B12: Код строки | C12: Код дохода по бюджетной классификации | D12: Утвержденные бюджетные назначения | E12: Исполнено | H12: Неисполненные назначения
E13: через финансовые органы | F13: через банковские счета | G13: некассовые операции
A24: 1 | B24: 2 | C24: 3 | D24: 4 | E24: 5 | F24: 6 | G24: 7 | H24: 8
A25: Доходы бюджета - всего | B25: 010 | C25: X | D25: =D27+D68 -> 25702764.27 | E25: =E27+E68 -> 25341653 | F25: =F27+F68 -> 0 | G25: =G27+G68 -> 0 | H25: =IF(OR(D25="-",E25=D25),"-",D25-IF(E25="-",0,E25)) -> 361111.27
A26: в том числе:
A27: НАЛОГОВЫЕ И НЕНАЛОГОВЫЕ ДОХОДЫ | C27: 000 10000000000000 000 | D27: =D28+D41+D47+D60+D64+D67+D66 -> 1011252 | E27: =E28+E41+E47+E60+E64+E67+E66+E65 -> 1004724.73 | H27: =IF(OR(D27="-",E27=D27),"-",D27-IF(E27="-",0,E27)) -> 6527.27
A28: НАЛОГИ НА ПРИБЫЛЬ, ДОХОДЫ | C28: 182 10100000000000 000 | D28: =D29 -> 682189 | E28: =E29 -> 689181.62 | F28: =F29 -> 0 | G28: =G29 -> 0 | H28: -6992.62
A29: Налог на доходы физических лиц | C29: 182 10102000010000 110 | D29: =FIO+D34+D37 -> 682189 | E29: =E30+E34+E37 -> 689181.62 | H29: -6992.62
A30: Налог на доходы физических лиц с доходов, источником которых является налоговый агент, за исключением доходов, в отношении которых исчисление и уплата налога осуществляются в соответствии со статьями 227, 2271 и 228 Налогового кодекса Российской Федерации | C30: 182 10102010010000 110 | D30: =D31+D32+D33 -> 600568 | E30: =E31+E32+E33 -> 607562.12 | H30: -6994.12
A31: Налог на доходы физических лиц с доходов, источником которых является налоговый агент, за исключением доходов, в отношении которых исчисление и уплата налога осуществляются в соответствии со статьями 227, 2271 и 228 Налогового кодекса Российской Федерации (сумма платежа) | C31: 182 10102010011000 110 | D31: =510000-15418-21669+97000-6957 -> 562956 | E31: =565117.61+3890.46+578+365.2 -> 569951.27 | H31: =IF(OR(D31="-",E31=D31),"-",D31-IF(E31="-",0,E31)) -> -6995.27
A32: Налог на доходы физических лиц с доходов, источником которых является налоговый агент, за исключением доходов, в отношении которых исчисление и уплата налога осуществляются в соответствии со статьями 227, 2271 и 228 Налогового кодекса Российской Федерации (пени и проценты по соответствующему платежу) | C32: 182 10102010012000 110 | D32: =15418+525 -> 15943 | E32: =15417.26+525.39 -> 15942.65 | H32: =IF(OR(D32="-",E32=D32),"-",D32-IF(E32="-",0,E32)) -> 0.35
A33: Налог на доходы физических лиц с доходов, источником которых является налоговый агент, за исключением доходов, в отношении которых исчисление и уплата налога осуществляются в соответствии со статьями 227, 227.1 и 228 Налогового кодекса Российской Федерации суммы денежных взысканий (штрафов) по соответствующему платежу согласно законодательству Российской Федерации) | C33: 182 10102010013000 110 | D33: 21669 | E33: 21668.2 | H33: =IF(OR(D33="-",E33=D33),"-",D33-IF(E33="-",0,E33)) -> 0.8
A34: Налог на доходы физических лиц с доходов, полученных от осуществления деятельности физическими лицами, зарегистрированными в качестве индивидуальных предпринимателей, нотариусов, занимающихся частной практикой, адвокатов, учредивших адвокатские кабинеты и других лиц, занимающихся частной практикой в соответствии со статьей 227 Налогового кодекса Российской Федерации | C34: 182 10102020010000 110 | D34: =D35+D36 -> 81479 | E34: =E35+E36 -> 81478.12 | H34: 0.88
A35: Налог на доходы физических лиц с доходов, полученных от осуществления деятельности физическими лицами, зарегистрированными в качестве индивидуальных предпринимателей, нотариусов, занимающихся частной практикой, адвокатов, учредивших адвокатские кабинеты и других лиц, занимающихся частной практикой в соответствии со статьей 227 Налогового кодекса Российской Федерации (сумма платежа) | C35: 182 10102020011000 110 | D35: =80681+796 -> 81477 | E35: 81476.4 | H35: 0.6
A36: Налог на доходы физических лиц с доходов, полученных от осуществления деятельности физическими лицами, зарегистрированными в качестве индивидуальных предпринимателей, нотариусов, занимающихся частной практикой, адвокатов, учредивших адвокатские кабинеты и других лиц, занимающихся частной практикой в соответствии со статьей 227 Налогового кодекса Российской Федерации (сумма платежа) | C36: 182 10102020012000 110 | D36: 2 | E36: 1.72 | H36: =IF(OR(D36="-",E36=D36),"-",D36-IF(E36="-",0,E36)) -> 0.28
A37: Налог на доходы физических лиц с доходов, полученных физическими лицамив соответствии со статьей 228 Налогового кодекса Российской Федерации (сумма денежныхвзысканий (штрафов) по соответствующему платежу согласно законодательству Российской Федерации) | C37: 182 10102030010000 110 | D37: =D38+D40+D39 -> 142 | E37: =E38+E40+E39 -> 141.38 | H37: =IF(OR(D37="-",E37=D37),"-",D37-IF(E37="-",0,E37)) -> 0.62
A38: Налог на доходы физических лиц с доходов, полученных физическими лицамив соответствии со статьей 228 Налогового кодекса Российской Федерации (сумма денежныхвзысканий (штрафов) по соответствующему платежу согласно законодательству Российской Федерации) | C38: 182 10102030011000 110 | D38: 37 | E38: 36.4 | H38: =IF(OR(D38="-",E38=D38),"-",D38-IF(E38="-",0,E38)) -> 0.6
A39: Налог на доходы физических лиц с доходов, полученных физическими лицамив соответствии со статьей 228 Налогового кодекса Российской Федерации (сумма денежныхвзысканий (штрафов) по соответствующему платежу согласно законодательству Российской Федерации) | C39: 182 10102030012000 110 | D39: 5 | E39: 4.98 | H39: =IF(OR(D39="-",E39=D39),"-",D39-IF(E39="-",0,E39)) -> 0.02
A40: Налог на доходы физических лиц с доходов, полученных физическими лицамив соответствии со статьей 228 Налогового кодекса Российской Федерации (сумма денежныхвзысканий (штрафов) по соответствующему платежу согласно законодательству Российской Федерации) | C40: 182 10102030013000 110 | D40: =50+50 -> 100 | E40: 100 | H40: =IF(OR(D40="-",E40=D40),"-",D40-IF(E40="-",0,E40)) -> -
A41: НАЛОГИ НА ТОВАРЫ (РАБОТЫ, УСЛУГИ), РЕАЛИЗУЕМЫЕ НА ТЕРРИТОРИИ РОССИЙСКОЙ ФЕДЕРАЦИИ | C41: 100 10300000000000 000 | D41: =D42 -> 81588 | E41: =E42 -> 77972.92 | H41: 3615.08
A42: Акцизы по подакцизным товарам (продукции), производимым на территории Российской Федерации | C42: 100 10302000010000 110 | D42: =D43+D44+D45+D46 -> 81588 | E42: =E43+E44+E45+E46 -> 77972.92 | H42: 3615.08
A43: Доходы от уплаты акцизов на дизельное топливо, зачисляемые в консолидированные бюджеты субъектов Российской Федерации | C43: 100 10302230010000 110 | D43: =38500-10226 -> 28274 | E43: 29428.3 | H43: -1154.3
A44: Доходы от уплаты акцизов на моторные масла для дизельных и (или) карбюраторных (инжекторных) двигателей, зачисляемые в консолидированные бюджеты субъектов Российской Федерации | C44: 100 10302240010000 110 | D44: =800-148 -> 652 | E44: 662.87 | H44: -10.87
A45: Доходы от уплаты акцизов на автомобильный бензин, производимый на территории Российской Федерации, зачисляемые в консолидированные бюджеты субъектов Российской Федерации | C45: 100 10302250010000 110 | D45: =62300-13238 -> 49062 | E45: 50414.1 | H45: =IF(OR(D45="-",E45=D45),"-",D45-IF(E45="-",0,E45)) -> -1352.1
A46: Доходы от уплаты акцизов на прямогонный бензин, производимый на территории Российской Федерации, зачисляемые в консолидированные бюджеты субъектов Российской Федерации | C46: 100 10302260010000 110 | D46: 3600 | E46: -2532.35 | H46: =D46-E46 -> 6132.35
A47: НАЛОГИ НА ИМУЩЕСТВО | C47: 182 10600000000000 000 | D47: =D48+D52 -> 54763 | E47: =E48+E52 -> 54869.03 | F47: =F48+F52 -> 0 | G47: =G48+G52 -> 0 | H47: -106.03
A48: Налог на имущество физических лиц | C48: 182 10601000000000 110 | D48: =D49 -> 45963 | E48: =E49 -> 45961.59 | F48: =F49 -> 0 | G48: =G49 -> 0 | H48: 1.41
A49: Налог на имущество физических лиц, взимаемый по ставкам, применяемым к объектам налогообложения, расположенным в границах поселений | C49: 182 10601030100000 110 | D49: =D50+D51 -> 45963 | E49: =E50+E51 -> 45961.59 | H49: 1.41
A50: Налог на имущество физических лиц, взимаемый по ставкам, применяемым к объектам налогообложения, расположенным в границах поселений (сумма платежа) | C50: 182 10601030101000 110 | D50: =46000-4396-2000+1362 -> 40966 | E50: 40965.18 | H50: 0.82
A51: Налог на имущество физических лиц, взимаемый по ставкам, применяемым к объектам налогообложения, расположенным в границах поселений (пени, проценты) | C51: 182 10601030102000 110 | D51: =4396+601 -> 4997 | E51: 4996.41 | H51: 0.59
A52: Земельный налог | C52: 182 10606000000000 110 | D52: =D53+D56 -> 8800 | E52: =E53+E56 -> 8907.44 | F52: =F53+F56 -> 0 | G52: =G53+G56 -> 0 | H52: -107.44
A53: Земельный налог, взимаемый по ставкам, установленным в соответствии с подпунктом 1 пункта 1 статьи 394 Налогового кодекса Российской Федерации | C53: 182 10606010000000 110 | D53: =D54+D55 -> 3800 | E53: =E54+E55 -> 3855.46 | H53: -55.46
A54: Земельный налог, взимаемый по ставкам, установленным в соответствии с подпунктом 1 пункта 1 статьи 394 Налогового кодекса Российской Федерации и применяемым к объектам налогообложения, расположенным в границах поселений | C54: 182 10606013101000 110 | D54: =5200-51-1400 -> 3749 | E54: 3764.6 | H54: -15.6
A55: Земельный налог, взимаемый по ставкам, установленным в соответствии с подпунктом 1 пункта 1 статьи 394 Налогового кодекса Российской Федерации и применяемым к объектам налогообложения, расположенным в границах поселений | C55: 182 10606013102000 110 | D55: 51 | E55: 90.86 | H55: =IF(OR(D55="-",E55=D55),"-",D55-IF(E55="-",0,E55)) -> -39.86
A56: Земельный налог, взимаемый по ставкам, установленным в соответствии с подпунктом 2 пункта 1 статьи 394 Налогового кодекса Российской Федерации | C56: 182 10606020000000 110 | D56: =D58+D57+D59 -> 5000 | E56: =E58+E57+E59 -> 5051.98 | H56: -51.98
A57: Земельный налог, взимаемый по ставкам, установленным в соответствии с подпунктом 2 пункта 1 статьи 394 Налогового кодекса Российской Федерации и применяемым к объектам налогообложения, расположенным в границах поселений (сумма платежа (ререрасчеты, недоимка и задолженность по соответствующему платежу, в том числе по отмененному) | C57: 182 10606023101000 110 | D57: =5000-3000-40 -> 1960 | E57: 2003.35 | H57: =IF(OR(D57="-",E57=D57),"-",D57-IF(E57="-",0,E57)) -> -43.35
A58: Земельный налог, взимаемый по ставкам, установленным в соответствии с подпунктом 2 пункта 1 статьи 394 Налогового кодекса Российской Федерации и применяемым к объектам налогообложения, расположенным в границах поселений (пени и проценты по соответствующему платежу) | C58: 182 10606023102000 110 | D58: 40 | E58: 48.63 | H58: -8.63
A59: Земельный налог, взимаемый по ставкам, установленным в соответствии с подпунктом 2 пункта 1 статьи 394 Налогового кодекса Российской Федерации и применяемым к объектам налогообложения, расположенным в границах поселений (пени и проценты по соответствующему платежу) | C59: 182 10606023103000 110 | D59: 3000 | E59: 3000 | H59: =IF(OR(D59="-",E59=D59),"-",D59-IF(E59="-",0,E59)) -> -
A60: ГОСУДАРСТВЕННАЯ ПОШЛИНА | C60: 807 10800000000000 000 | D60: =D61 -> 16240 | E60: 16240 | F60: 0 | G60: 0 | H60: -
A61: Государственная пошлина за совершение нотариальных действий (за исключением действий, совершаемых консульскими учреждениями Российской Федерации) | C61: 807 10804000010000 110 | D61: 16240 | E61: 16240 | H61: -
A62: Государственная пошлина за совершение нотариальных действий должностными лицами органов местного самоуправления, уполномоченными в соответствии с законодательными актами Российской Федерации на совершение нотариальных действий | C62: 807 10804020010000 110 | D62: 16240 | E62: 16240 | H62: -
A63: Государственная пошлина за совершение нотариальных действий должностными лицами органов местного самоуправления, уполномоченными в соответствии с законодательными актами Российской Федерации на совершение нотариальных действий (сумма платежа) | C63: 807 10804020011000 110 | D63: =6800+9440 -> 16240 | E63: 16240 | H63: -
A64: Доходы от использования имущества, находящегося в государственной муниципальной собственности | C64: 903 11105013101000 120 | D64: =3323+1044 -> 4367 | E64: 4366.77 | H64: 0.23
A65: Невыясненные доходы бюджетов поселений | C65: 807 11701050100000 180 | D65: 0 | E65: -10009.92 | H65: =IF(OR(D65="-",E65=D65),"-",D65-IF(E65="-",0,E65)) -> 10009.92
A66: Прочие неналоговые доходы бюджетов поселений | C66: 807 11705050100000 180 | D66: =125355+9110 -> 134465 | E66: 134464.31 | H66: 0.69
A67: Средства самообложения граждан, зачисляемые в бюджеты поселений | C67: 807 11714030100000 180 | D67: =36465+1175 -> 37640 | E67: 37640 | H67: =IF(OR(D67="-",E67=D67),"-",D67-IF(E67="-",0,E67)) -> -
A68: БЕЗВОЗМЕЗДНЫЕ ПОСТУПЛЕНИЯ | C68: 807 20000000000000 000 | D68: =D69 -> 24691512.27 | E68: =E69 -> 24336928.27 | F68: =F69 -> 0 | G68: =G69 -> 0 | H68: 354584
A69: БЕЗВОЗМЕЗДНЫЕ ПОСТУПЛЕНИЯ ОТ ДРУГИХ БЮДЖЕТОВ БЮДЖЕТНОЙ СИСТЕМЫ РОССИЙСКОЙ ФЕДЕРАЦИИ | C69: 807 20200000000000 000 | D69: =D70+D75+D78+D79+D80+D81+D82+D83+D84+D85 -> 24691512.27 | E69: =E70+E75+E78+E79+E80+E81+E82+E83+E84+E85 -> 24336928.27 | F69: =F70+F75+F85++F78+F79+F80+F82+F81+F83 -> 0 | G69: =G70+G75+G85++G78+G79+G80+G82+G81+G83 -> 0 | H69: 354584
A70: Дотации бюджетам субъектов Российской Федерации и муниципальных образований | C70: 807 20201000000000 151 | D70: =D71+D73 -> 7235502 | E70: =E71+E73 -> 6984953 | F70: =F71+F73 -> 0 | G70: =G71+G73 -> 0 | H70: 250549
A71: Дотации на выравнивание бюджетной обеспеченности | C71: 807 20201001000000 151 | D71: =D72 -> 387222 | E71: =E72 -> 387222 | H71: -
A72: Дотации бюджетам поселений на выравнивание бюджетной обеспеченности | C72: 807 20201001100000 151 | D72: 387222 | E72: 387222 | H72: -
A73: Дотации бюджетам на поддержку мер по обеспечению сбалансированности бюджетов | C73: 807 20201003000000 151 | D73: =D74 -> 6848280 | E73: =E74 -> 6597731 | H73: 250549
A74: Дотации бюджетам поселений на поддержку мер по обеспечению сбалансированности бюджетов | C74: 807 20201003100000 151 | D74: 6848280 | E74: 6597731 | H74: 250549
A75: Субвенции бюджетам субъектов Российской Федерации и муниципальных образований | C75: 807 20203000000000 151 | D75: 80100 | E75: =E76 -> 80100 | H75: -
A76: Субвенции бюджетам муниципальных образований края на осуществление государственных полномочий по первичному воинскому учету на территориях, где отсутствуют военные комиссариаты, в соответствии с Федеральным законом | C76: 807 20203001500000 151 | D76: 80100 | E76: =E77 -> 80100 | H76: -
A77: Субвенции бюджетам муниципальных образований края на осуществление государственных полномочий по первичному воинскому учету на территориях, где отсутствуют военные комиссариаты, в соответствии с Федеральным законом | C77: 807 20203001510000 151 | D77: 80100 | E77: =66750+6675+6675 -> 80100 | H77: -
A78: Иные межбюджетные трансферты на реализацию Закона края от 23 апреля 2009 года №8-3170 "О наделении органов местного самоуправления муниципальных образований края государственными полномочиями по созданию и обеспечению деятельности административных комиссий" на 2014 год и плановый период 2015-2016 годов | C78: 807 20204999100008 151 | D78: =2270-23 -> 2247 | E78: =189+2058 -> 2247 | H78: =IF(OR(D78="-",E78=D78),"-",D78-IF(E78="-",0,E78)) -> -
A79: Межбюджетные трансферты на государственную поддержку действующих и вновь создаваемых спортивных клубов по месту жительства граждан | C79: 807 20204999100036 151 | D79: 356570 | E79: 356570 | H79: -
A80: Межбюджетные трансферты на переселение граждан из аварийного жилищного фонда в муниципальных образованиях Красноярского края на 2013-2015 годы | C80: 807 20204999100039 151 | D80: 16086496.6 | E80: 16086496.6 | H80: -
A81: Межбюджетные трансферты на энергосбережение и повышение энергетической эффективности в Красноярском крае на 2010-2012 г. и на период до 2020 г. в части расходов на реализацию мероприятий по энергосбережению и повышению энергетической эффективности в связи с достижением наилучших показателей в области энергосбережения | C81: 807 20204999100040 151 | D81: 98900 | E81: 98900 | H81: -
A82: Межбюджетные трансферты на содержание автомобильных дорог общего пользования местного значения городских округов, городских и сельских поселений за счет средств дорожного фонда Красноярского края в рамках подпрограммы «Дороги Красноярья» государственной программы Красноярского края «Развитие транспортной системы Красноярского края» | C82: 807 20204999100042 151 | D82: 394400 | E82: 394400 | H82: -
A83: Межбюджетные трансферты на подготовку генеральных планов городских и сельских поселений, на разработку проектов планировки и межевания земельных участков для жилищного строительства, формирование и постановку земельных участков на кадастровый учет в рамках подпрограммы "Стимулирование жилищного строительства на территории Красноярского края" государственной программы Красноярского края "Создание условий для обеспечения доступным и комфортным жильем граждан Красноярского края" | C83: 807 20204999100045 151 | D83: 80546.67 | E83: 80546.67 | H83: -
A84: Межбюджетные трансферты на реализацию проектов по благоустройству территорий поселений в рамках подпрограммы «Поддержка муниципальных проектов и мероприятий по благоустройству территорий» государственной программы Красноярского края «Содействие развитию местного самоуправления» | C84: 807 20204999100046 151 | D84: 285000 | E84: 252715 | H84: =IF(OR(D84="-",E84=D84),"-",D84-IF(E84="-",0,E84)) -> 32285
A85: Межбюджетные трансферты на подключение общедоступных библиотек Российской Федерации к сети Интернет и развитие системы библиотечного дела с учетом задачи расширения информационных технологий и оцифровки в рамках подпрограммы "Обеспечение условий реализации государственной программы и прочие мероприятия" государственной программы "Развитие культуры" | C85: 807 20204999100051 151 | D85: 71750 | E85: 0 | H85: 71750
